[Event "*** Titled Tuesday Blitz"]
[Site "Chess.com"]
[Date "2021.03.09"]
[Round "6"]
[White "Blitzstream"]
[Black "SilviusTiberius"]
[Result "0-1"]
[WhiteElo "2741"]
[BlackElo "2523"]
[TimeControl "180+1"]
[EndTime "11:11:52 PST"]
[Termination "SilviusTiberius won on time"]

1. d4 {[%clk 0:03:00.9]} 1... Nf6 {[%clk 0:02:59.9]} 2. Bg5 {[%clk 0:03:00.7]}
2... e6 {[%clk 0:02:56.5]} 3. Nd2 {[%clk 0:03:00.1]} 3... h6 {[%clk 0:02:55.2]}
4. Bh4 {[%clk 0:02:59.4]} 4... d5 {[%clk 0:02:52.2]} 5. e3 {[%clk 0:02:59.4]}
5... c5 {[%clk 0:02:51.7]} 6. c3 {[%clk 0:02:59.4]} 6... Nc6 {[%clk 0:02:51.3]}
7. f4 {[%clk 0:02:59.2]} 7... Be7 {[%clk 0:02:49.3]} 8. Ngf3 {[%clk 0:02:59.1]}
8... Ng4 {[%clk 0:02:35.8]} 9. Bxe7 {[%clk 0:02:55.2]} 9... Nxe7 {[%clk
0:02:36.1]} 10. Bb5+ {[%clk 0:02:45.9]} 10... Bd7 {[%clk 0:02:32.2]} 11. Qe2
{[%clk 0:02:34.6]} 11... Bxb5 {[%clk 0:02:18.9]} 12. Qxb5+ {[%clk 0:02:34.3]}
12... Qd7 {[%clk 0:02:19.5]} 13. Qxd7+ {[%clk 0:02:30.5]} 13... Kxd7 {[%clk
0:02:20.4]} 14. Ke2 {[%clk 0:02:28.8]} 14... Nf5 {[%clk 0:02:13]} 15. Nf1 {[%clk
0:02:10.6]} 15... cxd4 {[%clk 0:02:07.4]} 16. exd4 {[%clk 0:02:07.3]} 16... Ke7
{[%clk 0:02:04.2]} 17. h3 {[%clk 0:01:59.6]} 17... Nf6 {[%clk 0:02:03.3]} 18. g4
{[%clk 0:01:56.7]} 18... Nd6 {[%clk 0:02:03.2]} 19. Ne3 {[%clk 0:01:45.9]} 19...
Nfe4 {[%clk 0:02:02.5]} 20. Rhg1 {[%clk 0:01:36.5]} 20... g5 {[%clk 0:01:54.3]}
21. f5 {[%clk 0:01:32.6]} 21... h5 {[%clk 0:01:54.1]} 22. fxe6 {[%clk
0:01:12.3]} 22... Kxe6 {[%clk 0:01:54.7]} 23. h4 {[%clk 0:00:44.2]} 23... hxg4
{[%clk 0:01:53.2]} 24. Rxg4 {[%clk 0:00:43.6]} 24... gxh4 {[%clk 0:01:41.4]} 25.
Nxh4 {[%clk 0:00:42]} 25... Rag8 {[%clk 0:01:37]} 26. Rag1 {[%clk 0:00:41.4]}
26... Rxg4 {[%clk 0:01:36.6]} 27. Rxg4 {[%clk 0:00:41]} 27... f5 {[%clk
0:01:35.1]} 28. Rf4 {[%clk 0:00:31.5]} 28... Rh5 {[%clk 0:01:28.2]} 29. Nf3
{[%clk 0:00:24.9]} 29... Ne8 {[%clk 0:01:22.3]} 30. Rh4 {[%clk 0:00:23.7]} 30...
Rxh4 {[%clk 0:01:20.6]} 31. Nxh4 {[%clk 0:00:24.6]} 31... Ng7 {[%clk 0:01:17.3]}
32. Ng6 {[%clk 0:00:22]} 32... Nh5 {[%clk 0:01:08.4]} 33. Ng2 {[%clk 0:00:22.1]}
33... Kd6 {[%clk 0:01:03.5]} 34. N6f4 {[%clk 0:00:21.6]} 34... Nhf6 {[%clk
0:01:01.6]} 35. Ne3 {[%clk 0:00:21.5]} 35... b5 {[%clk 0:00:46.6]} 36. Nxf5+
{[%clk 0:00:20.8]} 36... Kc6 {[%clk 0:00:47.1]} 37. Ne3 {[%clk 0:00:21]} 37...
a5 {[%clk 0:00:46.7]} 38. Nd3 {[%clk 0:00:19.8]} 38... Kd6 {[%clk 0:00:40.5]}
39. Kd1 {[%clk 0:00:18.4]} 39... Nd7 {[%clk 0:00:36.6]} 40. Kc2 {[%clk
0:00:18.3]} 40... Nb6 {[%clk 0:00:37]} 41. Nf5+ {[%clk 0:00:17.2]} 41... Ke6
{[%clk 0:00:34.5]} 42. Ne3 {[%clk 0:00:17.4]} 42... Kd6 {[%clk 0:00:34.7]} 43.
Nf4 {[%clk 0:00:17.6]} 43... Nf6 {[%clk 0:00:28.5]} 44. Nf5+ {[%clk 0:00:16.5]}
44... Kc6 {[%clk 0:00:27.6]} 45. b3 {[%clk 0:00:15.3]} 45... a4 {[%clk
0:00:26.6]} 46. Ne3 {[%clk 0:00:14.4]} 46... axb3+ {[%clk 0:00:26.4]} 47. axb3
{[%clk 0:00:15.1]} 47... Kd6 {[%clk 0:00:24.3]} 48. Nd3 {[%clk 0:00:15.6]} 48...
Nbd7 {[%clk 0:00:23.9]} 49. Nb4 {[%clk 0:00:13.4]} 49... Nf8 {[%clk 0:00:21.2]}
50. Kd3 {[%clk 0:00:13.1]} 50... Ne6 {[%clk 0:00:21.5]} 51. Kc2 {[%clk
0:00:11.1]} 51... Nf4 {[%clk 0:00:21]} 52. Nf1 {[%clk 0:00:07.9]} 52... Ne4
{[%clk 0:00:20.9]} 53. Nd2 {[%clk 0:00:07.9]} 53... Ng5 {[%clk 0:00:19.2]} 54.
Nb1 {[%clk 0:00:07]} 54... Ne2 {[%clk 0:00:18.5]} 55. Na3 {[%clk 0:00:06.4]}
55... Ne4 {[%clk 0:00:17.2]} 56. Nxb5+ {[%clk 0:00:06.5]} 56... Ke6 {[%clk
0:00:17.8]} 57. c4 {[%clk 0:00:05.3]} 57... dxc4 {[%clk 0:00:17.8]} 58. bxc4
{[%clk 0:00:06.2]} 58... Kf5 {[%clk 0:00:17.4]} 59. c5 {[%clk 0:00:05]} 59...
Ke6 {[%clk 0:00:16.8]} 60. d5+ {[%clk 0:00:03.5]} 60... Ke5 {[%clk 0:00:16.4]}
61. c6 {[%clk 0:00:03.6]} 61... Nd6 {[%clk 0:00:13]} 0-1

[Event "*** Titled Tuesday Blitz"]
[Site "Chess.com"]
[Date "2021.03.09"]
[Round "6"]
[White "Piotrek1979"]
[Black "zeitnot2006"]
[Result "0-1"]
[WhiteElo "2364"]
[BlackElo "2503"]
[TimeControl "180+1"]
[EndTime "11:11:52 PST"]
[Termination "zeitnot2006 won on time"]

1. e4 {[%clk 0:02:52.5]} 1... c6 {[%clk 0:02:59.4]} 2. d4 {[%clk 0:02:51.3]}
2... d5 {[%clk 0:03:00.3]} 3. exd5 {[%clk 0:02:50.3]} 3... cxd5 {[%clk
0:03:01.2]} 4. Bd3 {[%clk 0:02:50.3]} 4... Nc6 {[%clk 0:03:01.5]} 5. c3 {[%clk
0:02:50]} 5... Nf6 {[%clk 0:03:01.3]} 6. Bf4 {[%clk 0:02:47.7]} 6... g6 {[%clk
0:03:02.2]} 7. Nf3 {[%clk 0:02:45.9]} 7... Bg7 {[%clk 0:03:02]} 8. O-O {[%clk
0:02:44.4]} 8... Bg4 {[%clk 0:03:01.8]} 9. Nbd2 {[%clk 0:02:41.3]} 9... O-O
{[%clk 0:03:00.5]} 10. Qb3 {[%clk 0:02:39.6]} 10... Bxf3 {[%clk 0:02:57.3]} 11.
Nxf3 {[%clk 0:02:38.2]} 11... Na5 {[%clk 0:02:56.6]} 12. Qa4 {[%clk 0:02:36.4]}
12... a6 {[%clk 0:02:55.2]} 13. Rfe1 {[%clk 0:02:32.4]} 13... b5 {[%clk
0:02:52.4]} 14. Qc2 {[%clk 0:02:27.7]} 14... Nc4 {[%clk 0:02:48.6]} 15. Ne5
{[%clk 0:02:19.5]} 15... Rc8 {[%clk 0:02:45.3]} 16. Re2 {[%clk 0:02:16.9]} 16...
Re8 {[%clk 0:02:40]} 17. Rae1 {[%clk 0:02:14.6]} 17... Nh5 {[%clk 0:02:38.2]}
18. Bc1 {[%clk 0:02:07.5]} 18... Nf6 {[%clk 0:02:24.1]} 19. Qd1 {[%clk 0:02:01]}
19... Nxe5 {[%clk 0:02:20.7]} 20. dxe5 {[%clk 0:01:49.5]} 20... Nd7 {[%clk
0:02:11.4]} 21. e6 {[%clk 0:01:46.7]} 21... fxe6 {[%clk 0:02:12.3]} 22. Rxe6
{[%clk 0:01:41]} 22... Nc5 {[%clk 0:02:11.2]} 23. R6e2 {[%clk 0:01:29.2]} 23...
e5 {[%clk 0:02:03.1]} 24. Bb1 {[%clk 0:01:20.8]} 24... Qd6 {[%clk 0:01:58.2]}
25. a3 {[%clk 0:01:01.1]} 25... Rcd8 {[%clk 0:01:47.5]} 26. Ba2 {[%clk
0:01:00.4]} 26... Kh8 {[%clk 0:01:45.1]} 27. Bg5 {[%clk 0:00:55.6]} 27... Rd7
{[%clk 0:01:42.8]} 28. Rd2 {[%clk 0:00:51.4]} 28... Qf8 {[%clk 0:00:52.8]} 29.
Rxd5 {[%clk 0:00:48.9]} 29... Rxd5 {[%clk 0:00:48.7]} 30. Qxd5 {[%clk
0:00:49.8]} 30... Ne6 {[%clk 0:00:46.1]} 31. Qxe6 {[%clk 0:00:46]} 31... Rxe6
{[%clk 0:00:38.1]} 32. Bxe6 {[%clk 0:00:46.9]} 32... Bf6 {[%clk 0:00:30.9]} 33.
Be3 {[%clk 0:00:46.1]} 33... Qd6 {[%clk 0:00:29.9]} 34. Bb3 {[%clk 0:00:42.5]}
34... Kg7 {[%clk 0:00:28.5]} 35. Rd1 {[%clk 0:00:43.4]} 35... Qc6 {[%clk
0:00:28.7]} 36. Bd5 {[%clk 0:00:41.8]} 36... Qc7 {[%clk 0:00:28.6]} 37. Be4
{[%clk 0:00:41.6]} 37... Be7 {[%clk 0:00:23.9]} 38. Rd5 {[%clk 0:00:40.5]} 38...
Bd6 {[%clk 0:00:20.6]} 39. h4 {[%clk 0:00:40.1]} 39... Qc4 {[%clk 0:00:12.7]}
40. f3 {[%clk 0:00:34.7]} 40... Qe2 {[%clk 0:00:07.3]} 41. Bf2 {[%clk
0:00:31.7]} 41... Be7 {[%clk 0:00:04.6]} 42. Rd7 {[%clk 0:00:16.8]} 42... Kf8
{[%clk 0:00:04]} 43. b4 {[%clk 0:00:14.3]} 43... Qb2 {[%clk 0:00:03.4]} 44. Rc7
{[%clk 0:00:11.4]} 44... Qxa3 {[%clk 0:00:03]} 45. Bd5 {[%clk 0:00:11]} 45...
Qc1+ {[%clk 0:00:03.5]} 46. Kh2 {[%clk 0:00:10.7]} 46... Qd2 {[%clk 0:00:01.8]}
47. Bg3 {[%clk 0:00:11.5]} 47... Qe3 {[%clk 0:00:02.2]} 48. Rc8+ {[%clk
0:00:09.4]} 48... Kg7 {[%clk 0:00:02.1]} 49. Rc7 {[%clk 0:00:09.8]} 49... Kf8
{[%clk 0:00:02.3]} 50. h5 {[%clk 0:00:08.5]} 50... gxh5 {[%clk 0:00:02.4]} 51.
c4 {[%clk 0:00:06.5]} 51... h4 {[%clk 0:00:02.9]} 52. Rc8+ {[%clk 0:00:02.8]}
52... Kg7 {[%clk 0:00:02.9]} 53. Rg8+ {[%clk 0:00:03.7]} 53... Kh6 {[%clk
0:00:03]} 54. Bxh4 {[%clk 0:00:02.9]} 54... Bxh4 {[%clk 0:00:02.4]} 55. cxb5
{[%clk 0:00:03.8]} 55... Qf4+ {[%clk 0:00:03]} 56. Kh3 {[%clk 0:00:03.5]} 56...
Qd2 {[%clk 0:00:03.8]} 57. g3 {[%clk 0:00:02.8]} 57... Qxd5 {[%clk 0:00:04.2]}
58. Kxh4 {[%clk 0:00:02.2]} 58... Qxb5 {[%clk 0:00:04.8]} 0-1

[Event "*** Titled Tuesday Blitz"]
[Site "Chess.com"]
[Date "2021.03.09"]
[Round "6"]
[White "thechesscorner64"]
[Black "KarateBaby"]
[Result "0-1"]
[WhiteElo "2366"]
[BlackElo "2221"]
[TimeControl "180+1"]
[EndTime "11:11:52 PST"]
[Termination "KarateBaby won by checkmate"]

1. e4 {[%clk 0:03:00.9]} 1... g6 {[%clk 0:02:49.9]} 2. d4 {[%clk 0:03:00.2]}
2... Bg7 {[%clk 0:02:50.8]} 3. Nc3 {[%clk 0:02:59.9]} 3... d6 {[%clk 0:02:43.1]}
4. g3 {[%clk 0:02:59.6]} 4... a6 {[%clk 0:02:40.6]} 5. a4 {[%clk 0:02:58.8]}
5... Nd7 {[%clk 0:02:36.9]} 6. Bg2 {[%clk 0:02:56.9]} 6... c5 {[%clk 0:02:35.2]}
7. d5 {[%clk 0:02:55.2]} 7... Ngf6 {[%clk 0:02:04.7]} 8. h3 {[%clk 0:02:53.2]}
8... O-O {[%clk 0:02:00.3]} 9. Nge2 {[%clk 0:02:53.2]} 9... Re8 {[%clk
0:01:57.9]} 10. O-O {[%clk 0:02:52.8]} 10... Rb8 {[%clk 0:01:47]} 11. a5 {[%clk
0:02:50.8]} 11... e6 {[%clk 0:01:43.9]} 12. dxe6 {[%clk 0:02:48.6]} 12... Rxe6
{[%clk 0:01:44.8]} 13. Nf4 {[%clk 0:02:46.6]} 13... Nf8 {[%clk 0:01:31.9]} 14.
Nxe6 {[%clk 0:02:41.3]} 14... Nxe6 {[%clk 0:01:32.8]} 15. Nd5 {[%clk 0:02:40.9]}
15... Bd7 {[%clk 0:01:18.2]} 16. Nxf6+ {[%clk 0:02:23.6]} 16... Qxf6 {[%clk
0:01:19.1]} 17. Qxd6 {[%clk 0:02:11.9]} 17... Rd8 {[%clk 0:01:01.1]} 18. Qb6
{[%clk 0:01:44.7]} 18... Bb5 {[%clk 0:00:42.9]} 19. Re1 {[%clk 0:01:35.4]} 19...
Nd4 {[%clk 0:00:34.1]} 20. Qxf6 {[%clk 0:01:33.2]} 20... Bxf6 {[%clk 0:00:35]}
21. Be3 {[%clk 0:00:50.1]} 21... Nxc2 {[%clk 0:00:34.9]} 22. e5 {[%clk
0:00:33.6]} 22... Bxe5 {[%clk 0:00:32.4]} 23. Red1 {[%clk 0:00:32.9]} 23... Nd4
{[%clk 0:00:24.6]} 24. Bxd4 {[%clk 0:00:31.9]} 24... Bxd4 {[%clk 0:00:25.5]} 25.
Rac1 {[%clk 0:00:30.8]} 25... Re8 {[%clk 0:00:24.6]} 26. Re1 {[%clk 0:00:30.3]}
26... Rd8 {[%clk 0:00:24.1]} 27. Bxb7 {[%clk 0:00:29.7]} 27... Bxb2 {[%clk
0:00:22.5]} 28. Rcd1 {[%clk 0:00:29.6]} 28... Rb8 {[%clk 0:00:20.4]} 29. Bd5
{[%clk 0:00:28.3]} 29... c4 {[%clk 0:00:20.7]} 30. Re7 {[%clk 0:00:27.2]} 30...
Rf8 {[%clk 0:00:19.3]} 31. Rc7 {[%clk 0:00:20.6]} 31... c3 {[%clk 0:00:19.4]}
32. Kg2 {[%clk 0:00:16.5]} 32... Ba4 {[%clk 0:00:16.8]} 33. Re1 {[%clk
0:00:14.6]} 33... c2 {[%clk 0:00:16.4]} 34. Be4 {[%clk 0:00:11.5]} 34... Re8
{[%clk 0:00:12.4]} 35. Bxc2 {[%clk 0:00:02.1]} 35... Rxe1 {[%clk 0:00:04.9]} 36.
Bxa4 {[%clk 0:00:02.7]} 36... Re5 {[%clk 0:00:03.7]} 37. Rc8+ {[%clk 0:00:03.1]}
37... Kg7 {[%clk 0:00:03.7]} 38. Bb3 {[%clk 0:00:03.6]} 38... Rxa5 {[%clk
0:00:03.1]} 39. Rc7 {[%clk 0:00:04.2]} 39... Rf5 {[%clk 0:00:03.6]} 40. f4
{[%clk 0:00:03.9]} 40... Rf6 {[%clk 0:00:04.1]} 41. Kf3 {[%clk 0:00:03.9]} 41...
Rb6 {[%clk 0:00:04.8]} 42. Bd5 {[%clk 0:00:04]} 42... Ba3 {[%clk 0:00:05.1]} 43.
g4 {[%clk 0:00:04.3]} 43... Bd6 {[%clk 0:00:05.6]} 44. f5 {[%clk 0:00:04.5]}
44... Bxc7 {[%clk 0:00:05.5]} 45. fxg6 {[%clk 0:00:04.1]} 45... hxg6 {[%clk
0:00:05.4]} 46. Ke4 {[%clk 0:00:04]} 46... a5 {[%clk 0:00:06.3]} 47. Bc4 {[%clk
0:00:03.5]} 47... Bg3 {[%clk 0:00:06.6]} 48. Kd5 {[%clk 0:00:04.4]} 48... Bh4
{[%clk 0:00:07.5]} 49. g5 {[%clk 0:00:04.6]} 49... Rb2 {[%clk 0:00:07.8]} 50.
Kc5 {[%clk 0:00:04.8]} 50... a4 {[%clk 0:00:08.2]} 51. Kd4 {[%clk 0:00:05.2]}
51... a3 {[%clk 0:00:09.1]} 52. Kc3 {[%clk 0:00:06]} 52... Rb8 {[%clk
0:00:09.9]} 53. Bb3 {[%clk 0:00:06.1]} 53... Bxg5 {[%clk 0:00:10.7]} 54. Ba2
{[%clk 0:00:06.7]} 54... Bf6+ {[%clk 0:00:11.4]} 55. Kc4 {[%clk 0:00:06.5]}
55... g5 {[%clk 0:00:12.3]} 56. Bb3 {[%clk 0:00:06.9]} 56... Kh6 {[%clk
0:00:12.5]} 57. h4 {[%clk 0:00:07.6]} 57... Kh5 {[%clk 0:00:13.4]} 58. hxg5
{[%clk 0:00:07.9]} 58... Bxg5 {[%clk 0:00:13.3]} 59. Ba2 {[%clk 0:00:07.3]}
59... Bf6 {[%clk 0:00:14.2]} 60. Kd5 {[%clk 0:00:07.6]} 60... Bb2 {[%clk
0:00:15.1]} 61. Ke4 {[%clk 0:00:07.7]} 61... f6 {[%clk 0:00:16]} 62. Kf5 {[%clk
0:00:08.5]} 62... Rc8 {[%clk 0:00:16.4]} 63. Be6 {[%clk 0:00:07.4]} 63... Rc1
{[%clk 0:00:17.3]} 64. Bb3 {[%clk 0:00:07.3]} 64... Ra1 {[%clk 0:00:17.3]} 65.
Ke4 {[%clk 0:00:07.7]} 65... a2 {[%clk 0:00:18.2]} 66. Kd3 {[%clk 0:00:08.2]}
66... Rd1+ {[%clk 0:00:18]} 67. Bxd1+ {[%clk 0:00:08.2]} 67... Kg5 {[%clk
0:00:17.5]} 68. Kc2 {[%clk 0:00:09.1]} 68... a1=Q {[%clk 0:00:17.5]} 69. Kb3
{[%clk 0:00:09.2]} 69... Qxd1+ {[%clk 0:00:17.5]} 70. Ka2 {[%clk 0:00:09.4]}
70... f5 {[%clk 0:00:18.4]} 71. Kxb2 {[%clk 0:00:07.8]} 71... f4 {[%clk
0:00:18.4]} 72. Kc3 {[%clk 0:00:08.7]} 72... f3 {[%clk 0:00:19.3]} 73. Kb2
{[%clk 0:00:09.2]} 73... f2 {[%clk 0:00:20.2]} 74. Ka3 {[%clk 0:00:09.6]} 74...
f1=Q {[%clk 0:00:20.3]} 75. Kb4 {[%clk 0:00:10.5]} 75... Qfe2 {[%clk 0:00:20.6]}
76. Ka5 {[%clk 0:00:11.4]} 76... Qdd3 {[%clk 0:00:21.1]} 77. Kb6 {[%clk
0:00:12.3]} 77... Qee4 {[%clk 0:00:21.7]} 78. Kc7 {[%clk 0:00:13.2]} 78... Qdd5
{[%clk 0:00:22.2]} 79. Kb8 {[%clk 0:00:14.1]} 79... Qee6 {[%clk 0:00:22]} 80.
Ka7 {[%clk 0:00:15]} 80... Qdd7+ {[%clk 0:00:22.4]} 81. Kb8 {[%clk 0:00:15.9]}
81... Qee8# {[%clk 0:00:20.4]} 0-1

[Event "*** Titled Tuesday Blitz"]
[Site "Chess.com"]
[Date "2021.03.09"]
[Round "6"]
[White "elohunter1999"]
[Black "shnitez"]
[Result "1/2-1/2"]
[WhiteElo "2632"]
[BlackElo "2505"]
[TimeControl "180+1"]
[EndTime "11:11:53 PST"]
[Termination "Game drawn - insufficient material"]

1. Nf3 {[%clk 0:03:00.9]} 1... Nf6 {[%clk 0:02:56.9]} 2. g3 {[%clk 0:03:00.8]}
2... b6 {[%clk 0:02:56.4]} 3. Bg2 {[%clk 0:03:00]} 3... Bb7 {[%clk 0:02:57.3]}
4. c4 {[%clk 0:02:57.2]} 4... e6 {[%clk 0:02:57.2]} 5. O-O {[%clk 0:02:57]} 5...
c5 {[%clk 0:02:53.6]} 6. Nc3 {[%clk 0:02:55.6]} 6... Be7 {[%clk 0:02:41]} 7. Re1
{[%clk 0:02:52.3]} 7... O-O {[%clk 0:02:34.4]} 8. e4 {[%clk 0:02:49.2]} 8... d6
{[%clk 0:02:32.2]} 9. d4 {[%clk 0:02:47]} 9... cxd4 {[%clk 0:02:29.7]} 10. Nxd4
{[%clk 0:02:46]} 10... Qc8 {[%clk 0:02:09.4]} 11. Be3 {[%clk 0:02:42.6]} 11...
a6 {[%clk 0:02:04]} 12. Rc1 {[%clk 0:02:36.2]} 12... Nbd7 {[%clk 0:02:03]} 13.
f4 {[%clk 0:02:33.2]} 13... Re8 {[%clk 0:01:50.6]} 14. Bf2 {[%clk 0:02:29.7]}
14... Ra7 {[%clk 0:01:26.3]} 15. g4 {[%clk 0:02:22.1]} 15... e5 {[%clk
0:01:15.3]} 16. Nf5 {[%clk 0:02:13.4]} 16... g6 {[%clk 0:00:35.2]} 17. Nxe7+
{[%clk 0:01:40.5]} 17... Rxe7 {[%clk 0:00:35.2]} 18. f5 {[%clk 0:01:13.3]} 18...
gxf5 {[%clk 0:00:27.7]} 19. gxf5 {[%clk 0:01:13.1]} 19... Qc7 {[%clk 0:00:19.2]}
20. Qd2 {[%clk 0:01:10.1]} 20... Ra8 {[%clk 0:00:15.2]} 21. Bh4 {[%clk
0:01:09.2]} 21... Kh8 {[%clk 0:00:09.9]} 22. Kh1 {[%clk 0:01:05.6]} 22... Rg8
{[%clk 0:00:09.3]} 23. Bf3 {[%clk 0:01:02.8]} 23... Ree8 {[%clk 0:00:09.2]} 24.
Rg1 {[%clk 0:01:01.9]} 24... Rxg1+ {[%clk 0:00:07.6]} 25. Rxg1 {[%clk
0:01:01.3]} 25... Rg8 {[%clk 0:00:07.4]} 26. Rxg8+ {[%clk 0:00:59.7]} 26... Nxg8
{[%clk 0:00:07.8]} 27. Qg5 {[%clk 0:00:39]} 27... Ndf6 {[%clk 0:00:07.5]} 28.
Bf2 {[%clk 0:00:32.9]} 28... Qxc4 {[%clk 0:00:05.9]} 29. Kg1 {[%clk 0:00:12.8]}
29... Nxe4 {[%clk 0:00:04.5]} 30. Nxe4 {[%clk 0:00:08]} 30... Bxe4 {[%clk
0:00:05.4]} 31. f6 {[%clk 0:00:08.5]} 31... Bg6 {[%clk 0:00:04.6]} 32. h4 {[%clk
0:00:06.2]} 32... Qc2 {[%clk 0:00:03.3]} 33. h5 {[%clk 0:00:05.5]} 33... Qf5
{[%clk 0:00:03.8]} 34. Qh4 {[%clk 0:00:03.7]} 34... Qxf3 {[%clk 0:00:03.7]} 35.
hxg6 {[%clk 0:00:03.9]} 35... fxg6 {[%clk 0:00:04.3]} 36. f7 {[%clk 0:00:02.4]}
36... Qxf7 {[%clk 0:00:04.2]} 37. Qd8 {[%clk 0:00:02.8]} 37... Qf6 {[%clk
0:00:04]} 38. Qxb6 {[%clk 0:00:03.5]} 38... e4 {[%clk 0:00:03.6]} 39. Qxa6
{[%clk 0:00:03.9]} 39... Qg5+ {[%clk 0:00:02.7]} 40. Kf1 {[%clk 0:00:02.5]}
40... Qc1+ {[%clk 0:00:02.8]} 41. Kg2 {[%clk 0:00:03]} 41... Qg5+ {[%clk
0:00:03.3]} 42. Bg3 {[%clk 0:00:03.2]} 42... Nf6 {[%clk 0:00:03.3]} 43. Qxd6
{[%clk 0:00:03.7]} 43... Nh5 {[%clk 0:00:03.4]} 44. Qe5+ {[%clk 0:00:04.2]}
44... Qxe5 {[%clk 0:00:03.4]} 45. Bxe5+ {[%clk 0:00:05.1]} 45... Kg8 {[%clk
0:00:04.2]} 46. a4 {[%clk 0:00:06]} 46... Kf7 {[%clk 0:00:04.7]} 47. a5 {[%clk
0:00:06.6]} 47... Ke6 {[%clk 0:00:05.6]} 48. a6 {[%clk 0:00:07.2]} 48... Kxe5
{[%clk 0:00:05.3]} 49. a7 {[%clk 0:00:07.8]} 49... Nf4+ {[%clk 0:00:05.6]} 50.
Kf1 {[%clk 0:00:08.1]} 50... e3 {[%clk 0:00:05.4]} 51. a8=Q {[%clk 0:00:08.7]}
51... g5 {[%clk 0:00:05.4]} 52. Qe8+ {[%clk 0:00:08.2]} 52... Kd4 {[%clk
0:00:05]} 53. Qd8+ {[%clk 0:00:08.5]} 53... Ke4 {[%clk 0:00:05.4]} 54. Qxg5
{[%clk 0:00:07.4]} 54... Kf3 {[%clk 0:00:03]} 55. Qe7 {[%clk 0:00:02.4]} 55...
e2+ {[%clk 0:00:02.9]} 56. Ke1 {[%clk 0:00:02.5]} 56... Ng2+ {[%clk 0:00:02.6]}
57. Kd2 {[%clk 0:00:02.9]} 57... e1=Q+ {[%clk 0:00:03.2]} 58. Qxe1 {[%clk
0:00:03.4]} 58... Nxe1 {[%clk 0:00:04]} 59. Kxe1 {[%clk 0:00:04.3]} 59... Ke3
{[%clk 0:00:04.5]} 60. Kd1 {[%clk 0:00:04.6]} 60... Kd3 {[%clk 0:00:04.8]} 61.
Ke1 {[%clk 0:00:04.8]} 61... Kc4 {[%clk 0:00:05.1]} 62. Kd2 {[%clk 0:00:04.9]}
62... Kb3 {[%clk 0:00:05.5]} 63. Ke3 {[%clk 0:00:05.3]} 63... Kxb2 {[%clk
0:00:05.2]} 64. Kf4 {[%clk 0:00:06.2]} 64... Kc3 {[%clk 0:00:05.3]} 65. Kg5
{[%clk 0:00:06.8]} 65... Kd4 {[%clk 0:00:06.2]} 66. Kh6 {[%clk 0:00:07.4]} 66...
Ke5 {[%clk 0:00:07.1]} 67. Kxh7 {[%clk 0:00:08.2]} 1/2-1/2

[Event "*** Titled Tuesday Blitz"]
[Site "Chess.com"]
[Date "2021.03.09"]
[Round "6"]
[White "Jospem"]
[Black "Vsevolod_Ovchinnikov"]
[Result "1-0"]
[WhiteElo "2933"]
[BlackElo "2511"]
[TimeControl "180+1"]
[EndTime "11:11:55 PST"]
[Termination "Jospem won by resignation"]

1. e4 {[%clk 0:02:59.3]} 1... g6 {[%clk 0:03:00.3]} 2. d4 {[%clk 0:02:58.2]}
2... Bg7 {[%clk 0:03:00.9]} 3. c3 {[%clk 0:02:58.5]} 3... d6 {[%clk 0:03:00.7]}
4. Bd3 {[%clk 0:02:58.3]} 4... Nf6 {[%clk 0:03:01.2]} 5. Nf3 {[%clk 0:02:58.8]}
5... Bg4 {[%clk 0:03:00.7]} 6. Nbd2 {[%clk 0:02:58]} 6... O-O {[%clk 0:02:58.5]}
7. h3 {[%clk 0:02:58.1]} 7... Bd7 {[%clk 0:02:56.3]} 8. O-O {[%clk 0:02:56]}
8... Nc6 {[%clk 0:02:56.8]} 9. e5 {[%clk 0:02:52.7]} 9... Nd5 {[%clk 0:02:54.8]}
10. exd6 {[%clk 0:02:36.4]} 10... exd6 {[%clk 0:02:52.5]} 11. Ne4 {[%clk
0:02:35.7]} 11... h6 {[%clk 0:02:50.2]} 12. Re1 {[%clk 0:02:30.2]} 12... Nb6
{[%clk 0:02:42.4]} 13. Ng3 {[%clk 0:02:26.7]} 13... Re8 {[%clk 0:02:39.4]} 14.
Rxe8+ {[%clk 0:02:25.3]} 14... Qxe8 {[%clk 0:02:39.3]} 15. Bd2 {[%clk
0:02:23.6]} 15... Qf8 {[%clk 0:02:38.1]} 16. a4 {[%clk 0:02:23.1]} 16... a5
{[%clk 0:02:24.6]} 17. Qc2 {[%clk 0:02:18.8]} 17... Re8 {[%clk 0:02:22.2]} 18.
Bb5 {[%clk 0:02:12.5]} 18... Re7 {[%clk 0:02:12.5]} 19. Qd3 {[%clk 0:02:05.5]}
19... Nc8 {[%clk 0:01:49.7]} 20. Bc4 {[%clk 0:02:02.2]} 20... Nd8 {[%clk
0:01:46.3]} 21. Qxg6 {[%clk 0:01:50.2]} 21... d5 {[%clk 0:01:14]} 22. Bxd5
{[%clk 0:01:42.7]} 22... Bc6 {[%clk 0:01:14.5]} 23. Qh5 {[%clk 0:01:38.6]} 23...
Bxd5 {[%clk 0:01:13.1]} 24. Qxd5 {[%clk 0:01:39.5]} 24... b6 {[%clk 0:01:12.8]}
25. Nf5 {[%clk 0:01:30.6]} 25... Re6 {[%clk 0:01:13.3]} 26. Qd7 {[%clk
0:01:15.1]} 26... Ne7 {[%clk 0:01:03.3]} 27. Nxg7 {[%clk 0:01:05.4]} 27... Kxg7
{[%clk 0:01:03.6]} 28. Qxc7 {[%clk 0:01:05.4]} 28... Ng6 {[%clk 0:00:59.5]} 29.
d5 {[%clk 0:01:02.2]} 29... Rd6 {[%clk 0:00:52.3]} 30. c4 {[%clk 0:01:01.4]}
30... Qe7 {[%clk 0:00:47.5]} 31. Qxe7 {[%clk 0:00:59.7]} 31... Nxe7 {[%clk
0:00:48.4]} 32. Nd4 {[%clk 0:00:55.5]} 32... Nb7 {[%clk 0:00:40.8]} 33. Re1
{[%clk 0:00:55.4]} 33... Kf8 {[%clk 0:00:34.8]} 34. Bf4 {[%clk 0:00:49.2]} 34...
Rd7 {[%clk 0:00:34]} 35. Bxh6+ {[%clk 0:00:48.6]} 35... Kg8 {[%clk 0:00:34]} 36.
Bg5 {[%clk 0:00:48.8]} 36... Ng6 {[%clk 0:00:31]} 37. Re8+ {[%clk 0:00:48.6]}
37... Kh7 {[%clk 0:00:31.2]} 38. Nf5 {[%clk 0:00:43.8]} 38... Nc5 {[%clk
0:00:27.3]} 39. h4 {[%clk 0:00:42.1]} 39... f6 {[%clk 0:00:20]} 40. Be3 {[%clk
0:00:28.9]} 40... Nxa4 {[%clk 0:00:19]} 41. b3 {[%clk 0:00:24.8]} 41... Nc5
{[%clk 0:00:18.2]} 42. Bxc5 {[%clk 0:00:25.1]} 42... bxc5 {[%clk 0:00:19.1]} 43.
Ra8 {[%clk 0:00:25.2]} 43... Rb7 {[%clk 0:00:16.4]} 44. d6 {[%clk 0:00:25.7]}
44... Ne5 {[%clk 0:00:15.8]} 45. Rxa5 {[%clk 0:00:24.1]} 45... Kg6 {[%clk
0:00:15]} 46. Ne7+ {[%clk 0:00:22.2]} 46... Kf7 {[%clk 0:00:15]} 47. Rxc5 {[%clk
0:00:21.1]} 47... Rxb3 {[%clk 0:00:15.1]} 48. f3 {[%clk 0:00:14.2]} 48... Ke6
{[%clk 0:00:13.5]} 49. Nc8 {[%clk 0:00:11.4]} 49... Rc3 {[%clk 0:00:12.3]} 50.
h5 {[%clk 0:00:11.8]} 50... Rxc4 {[%clk 0:00:07.2]} 51. Rxc4 {[%clk 0:00:11.9]}
51... Nxc4 {[%clk 0:00:08.1]} 52. h6 {[%clk 0:00:12.8]} 52... Ne5 {[%clk
0:00:08.4]} 53. h7 {[%clk 0:00:12.3]} 53... Nf7 {[%clk 0:00:08.9]} 54. Kf2
{[%clk 0:00:11.7]} 54... Kd7 {[%clk 0:00:08.6]} 55. Ne7 {[%clk 0:00:12.3]} 55...
Nh8 {[%clk 0:00:07.3]} 56. Nf5 {[%clk 0:00:12]} 56... Ke6 {[%clk 0:00:07.8]} 57.
g4 {[%clk 0:00:12.8]} 57... Kd7 {[%clk 0:00:08.3]} 58. Ke3 {[%clk 0:00:13.3]}
58... Ng6 {[%clk 0:00:09]} 59. Ke4 {[%clk 0:00:13]} 59... Ke6 {[%clk 0:00:09.4]}
60. f4 {[%clk 0:00:12]} 60... Kd7 {[%clk 0:00:09.3]} 61. Kd4 {[%clk 0:00:12]}
61... Nh8 {[%clk 0:00:08.9]} 62. Kd5 {[%clk 0:00:12]} 62... Ng6 {[%clk
0:00:09.5]} 63. Kc5 {[%clk 0:00:12.2]} 63... Nh8 {[%clk 0:00:09.6]} 64. Ne3
{[%clk 0:00:10.4]} 64... Ng6 {[%clk 0:00:08.9]} 65. Nd5 {[%clk 0:00:11]} 65...
Ke6 {[%clk 0:00:08.2]} 66. f5+ {[%clk 0:00:11.6]} 1-0